[Event "28th North American Open"]
[Site "Las Vegas"]
[Date "2018.12.28"]
[Round "5"]
[White "Becerra Rivero, Julio"]
[Black "Kumar, Nikhil"]
[Result "1/2-1/2"]
[ECO "B11"]
[WhiteElo "2520"]
[BlackElo "2281"]
[PlyCount "91"]
[EventDate "2018.12.??"]
[EventType "swiss"]
[EventRounds "9"]
[EventCountry "USA"]
[TimeControl "6600+10"]
[WhiteClock "0:02:15"]
[BlackClock "0:02:03"]

1. e4 {[%emt 0:19:40]} c6 {[%emt 0:19:59]} 2. Nc3 {[%emt 0:00:14]} d5 {[%emt 0:
00:00]} 3. Nf3 {[%emt 0:00:17]} Bg4 {[%emt 0:00:04]} 4. h3 {[%emt 0:00:00]}
Bxf3 {[%emt 0:00:00]} 5. Qxf3 {[%emt 0:00:00]} e6 {[%emt 0:00:00]} 6. Be2 {
[%emt 0:01:03]} Nf6 7. O-O {[%emt 0:01:30]} Bc5 {[%emt 0:00:00]} 8. Rd1 {
[%emt 0:03:44]} Bd4 {[%emt 0:00:00]} 9. exd5 {[%emt 0:03:10]} exd5 {[%emt 0:00:
56]} 10. Bf1 {[%emt 0:00:49]} O-O {[%emt 0:03:45]} 11. Ne2 {[%emt 0:00:00]} Bb6
{[%emt 0:00:10]} 12. d4 {[%emt 0:00:21]} Ne4 {[%emt 0:00:59]} 13. c4 {[%emt 0:
07:39]} Nd7 {[%emt 0:01:25]} 14. Nc3 {[%emt 0:00:32]} Ndf6 {[%emt 0:01:57]} 15.
Bf4 {[%emt 0:00:54]} Bc7 {[%emt 0:05:43]} 16. cxd5 {[%emt 0:07:18]} Nxc3 {
[%emt 0:02:08]} 17. bxc3 {[%emt 0:00:00]} Bxf4 {[%emt 0:00:01]} 18. dxc6 {
[%emt 0:11:25]} Bc7 {[%emt 0:16:22]} 19. cxb7 {[%emt 0:00:00]} Qd6 {[%emt 0:00:
22]} 20. g3 {[%emt 0:00:49]} Rad8 {[%emt 0:00:33]} 21. c4 {[%emt 0:00:30]} Rfe8
{[%emt 0:01:24]} 22. c5 {[%emt 0:12:12]} Qd5 {[%emt 0:02:53]} 23. Qxd5 {
[%emt 0:00:10]} Nxd5 {[%emt 0:00:00]} 24. Rac1 {[%emt 0:01:01]} Kf8 {[%emt 0:
01:59]} 25. Bg2 {[%emt 0:07:18]} g6 {[%emt 0:08:17]} 26. Kf1 {[%emt 0:04:34]}
Re7 {[%emt 0:03:36]} 27. Rd3 {[%emt 0:03:31]} Nb4 {[%emt 0:04:47]} 28. Rd2 {
[%emt 0:03:03]} Red7 {[%emt 0:02:54]} 29. Rc4 {[%emt 0:00:32]} Nd5 {[%emt 0:06:
08]} 30. Rd3 {[%emt 0:00:22]} f5 {[%emt 0:02:21]} 31. Ra3 {[%emt 0:04:36]} a5 {
[%emt 0:00:07]} 32. Rb3 {[%emt 0:01:59]} Ne7 {[%emt 0:09:56]} 33. Bf3 {[%emt 0:
04:36]} Kg7 {[%emt 0:03:07]} 34. c6 {[%emt 0:03:40]} Rd6 {[%emt 0:00:01]} 35.
Rb5 {[%emt 0:05:42]} Kf6 {[%emt 0:02:19]} 36. Ke2 {[%emt 0:00:40]} Nd5 {
[%emt 0:03:35]} 37. Rcc5 {[%emt 0:00:00]} Nb4 {[%emt 0:02:03]} 38. b8=Q {
[%emt 0:00:00]} Rxb8 {[%emt 0:02:10]} 39. Rxb8 {[%emt 0:00:00]} Bxb8 {[%emt 0:
00:00]} 40. c7 {[%emt 0:02:17]} Bxc7 {[%emt 0:00:00]} 41. Rxc7 {[%emt 0:00:00]}
Nxa2 {[%emt 0:03:35]} 42. Kd3 {[%emt 0:00:00]} Rb6 {[%emt 0:00:00]} 43. Kc2 {
[%emt 0:00:00]} Nb4+ {[%emt 0:00:10]} 44. Kc3 {[%emt 0:00:00]} Na2+ {[%emt 0:
00:02]} 45. Kc2 {[%emt 0:00:00]} Nb4+ {[%emt 0:00:00]} 46. Kc3 {[%emt 0:00:00]}
1/2-1/2

[Event "28th North American Open"]
[Site "Las Vegas"]
[Date "2018.12.28"]
[Round "5"]
[White "Yang, Kevin"]
[Black "Aaron, Deepak"]
[Result "1/2-1/2"]
[ECO "A04"]
[WhiteElo "2135"]
[BlackElo "2315"]
[PlyCount "117"]
[EventDate "2018.12.??"]
[EventType "swiss"]
[EventRounds "9"]
[EventCountry "USA"]
[TimeControl "6600+10"]
[WhiteClock "0:09:51"]
[BlackClock "0:03:35"]

1. Nf3 {[%emt 0:19:40]} e6 2. g3 {[%emt 0:00:00]} d5 {[%emt 0:20:12]} 3. Bg2 {
[%emt 0:00:00]} Nf6 {[%emt 0:00:21]} 4. O-O {[%emt 0:00:00]} Be7 {[%emt 0:00:
00]} 5. c4 {[%emt 0:00:00]} dxc4 {[%emt 0:01:13]} 6. Qa4+ {[%emt 0:00:00]} c6 {
[%emt 0:00:00]} 7. Qxc4 {[%emt 0:00:00]} b5 {[%emt 0:01:50]} 8. Qc2 {[%emt 0:
00:00]} Bb7 {[%emt 0:01:00]} 9. d4 {[%emt 0:00:02]} Nbd7 {[%emt 0:02:36]} 10.
Nc3 {[%emt 0:01:54]} Qb6 {[%emt 0:02:03]} 11. e4 {[%emt 0:17:56]} c5 {[%emt 0:
05:11]} 12. Be3 {[%emt 0:38:30]} Ng4 {[%emt 0:04:28]} 13. Rad1 {[%emt 0:06:41]}
Nxe3 {[%emt 0:01:56]} 14. fxe3 {[%emt 0:00:00]} cxd4 {[%emt 0:13:34]} 15. exd4
{[%emt 0:00:00]} O-O {[%emt 0:03:21]} 16. Kh1 {[%emt 0:00:00]} Rac8 {[%emt 0:
02:28]} 17. Qb1 {[%emt 0:03:32]} b4 {[%emt 0:08:15]} 18. Ne2 {[%emt 0:00:00]}
Nf6 {[%emt 0:05:21]} 19. Ne5 {[%emt 0:00:00]} Rfd8 {[%emt 0:17:45]} 20. Nxf7 {
[%emt 0:00:00]} Kxf7 {[%emt 0:01:31]} 21. e5 {[%emt 0:00:00]} Bxg2+ {[%emt 0:
03:30]} 22. Kxg2 {[%emt 0:00:00]} Qc6+ {[%emt 0:00:54]} 23. Rf3 {[%emt 0:01:07]
} Qc2 {[%emt 0:00:00]} 24. exf6 {[%emt 0:00:40]} Bxf6 {[%emt 0:00:01]} 25. Kf1
{[%emt 0:00:27]} Ke7 {[%emt 0:05:07]} 26. Qxc2 {[%emt 0:00:00]} Rxc2 {[%emt 0:
00:50]} 27. Rb3 {[%emt 0:00:00]} a5 {[%emt 0:03:57]} 28. a3 {[%emt 0:00:00]}
Rb8 {[%emt 0:01:01]} 29. Ra1 {[%emt 0:01:38]} Rb5 {[%emt 0:05:09]} 30. axb4 {
[%emt 0:00:00]} Rxb4 {[%emt 0:00:00]} 31. Raa3 {[%emt 0:00:00]} Bxd4 {[%emt 0:
00:19]} 32. Rxb4 {[%emt 0:00:00]} axb4 {[%emt 0:00:00]} 33. Rb3 {[%emt 0:00:00]
} Bc5 {[%emt 0:00:00]} 34. Ke1 {[%emt 0:00:00]} e5 {[%emt 0:00:00]} 35. Kd1 {
[%emt 0:00:00]} Rc4 {[%emt 0:00:00]} 36. Rf3 {[%emt 0:00:00]} Ke6 {[%emt 0:00:
00]} 37. b3 {[%emt 0:00:00]} Rg4 {[%emt 0:00:00]} 38. h3 {[%emt 0:00:00]} Rg6 {
[%emt 0:00:00]} 39. Kd2 {[%emt 0:00:00]} Rh6 {[%emt 0:00:00]} 40. g4 {[%emt 0:
00:00]} Rf6 {[%emt 0:00:00]} 41. Rxf6+ {[%emt 0:11:55]} gxf6 {[%emt 0:00:00]}
42. Ng3 {[%emt 0:06:55]} Bf2 {[%emt 0:00:00]} 43. Ne4 {[%emt 0:00:56]} Bh4 {
[%emt 0:00:00]} 44. Nc5+ {[%emt 0:01:26]} Kd5 {[%emt 0:00:00]} 45. Nd3 {
[%emt 0:00:00]} Ke4 {[%emt 0:00:00]} 46. Ke2 {[%emt 0:00:00]} f5 {[%emt 0:00:
00]} 47. gxf5 {[%emt 0:00:34]} Be7 {[%emt 0:00:00]} 48. f6 {[%emt 0:00:00]}
Bxf6 {[%emt 0:02:10]} 49. Nxb4 {[%emt 0:00:00]} h5 {[%emt 0:00:46]} 50. Nd3 {
[%emt 0:00:00]} Bd8 {[%emt 0:00:29]} 51. Nf2+ {[%emt 0:00:00]} Kf4 {[%emt 0:00:
00]} 52. Nd3+ {[%emt 0:00:00]} Kf5 {[%emt 0:00:00]} 53. Nxe5 {[%emt 0:00:00]}
Kxe5 {[%emt 0:00:00]} 54. Kf3 {[%emt 0:00:00]} Kf5 {[%emt 0:00:00]} 55. b4 {
[%emt 0:00:00]} h4 {[%emt 0:00:00]} 56. b5 {[%emt 0:00:00]} Bb6 {[%emt 0:00:00]
} 57. Kg2 {[%emt 0:00:00]} Kf4 {[%emt 0:00:00]} 58. Kh1 {[%emt 0:00:00]} Kf3 {
[%emt 0:00:00]} 59. Kh2 {[%emt 0:00:00]} 1/2-1/2

[Event "28th North American Open"]
[Site "Las Vegas"]
[Date "2018.12.28"]
[Round "5"]
[White "Zavortink, Matt"]
[Black "Encinas Varela, David"]
[Result "1-0"]
[ECO "E91"]
[WhiteElo "2160"]
[BlackElo "1885"]
[PlyCount "87"]
[EventDate "2018.12.??"]
[EventType "swiss"]
[EventRounds "9"]
[EventCountry "USA"]
[TimeControl "6600+10"]
[WhiteClock "0:09:46"]
[BlackClock "0:07:07"]

1. Nf3 {[%emt 0:19:40]} Nf6 {[%emt 0:19:50]} 2. c4 {[%emt 0:00:00]} g6 {
[%emt 0:00:49]} 3. Nc3 {[%emt 0:00:00]} Bg7 {[%emt 0:00:00]} 4. e4 {[%emt 0:00:
00]} d6 {[%emt 0:00:00]} 5. d4 {[%emt 0:00:00]} O-O {[%emt 0:00:00]} 6. Be2 {
[%emt 0:00:00]} Bg4 {[%emt 0:00:23]} 7. O-O {[%emt 0:02:50]} Nfd7 8. Be3 {
[%emt 0:04:27]} Nc6 {[%emt 0:01:35]} 9. d5 {[%emt 0:09:21]} Na5 {[%emt 0:00:00]
} 10. Nd4 {[%emt 0:09:35]} Bxe2 {[%emt 0:02:30]} 11. Qxe2 {[%emt 0:00:00]} c5 {
[%emt 0:00:09]} 12. dxc6 {[%emt 0:00:07]} Nxc6 {[%emt 0:00:00]} 13. Rfd1 {
[%emt 0:03:17]} Qa5 {[%emt 0:09:09]} 14. Nd5 {[%emt 0:08:02]} Rfe8 {[%emt 0:10:
42]} 15. Nb3 {[%emt 0:17:56]} Qd8 {[%emt 0:00:00]} 16. c5 {[%emt 0:00:13]} Qb8
{[%emt 0:03:06]} 17. cxd6 {[%emt 0:13:38]} exd6 {[%emt 0:14:12]} 18. f3 {
[%emt 0:01:08]} Nf6 {[%emt 0:02:09]} 19. Nc3 {[%emt 0:14:18]} a6 {[%emt 0:27:
00]} 20. Rd2 {[%emt 0:05:33]} Qc7 {[%emt 0:01:56]} 21. Rad1 {[%emt 0:00:40]}
Rad8 {[%emt 0:00:11]} 22. Qf2 {[%emt 0:01:12]} Qe7 {[%emt 0:00:00]} 23. Bg5 {
[%emt 0:00:00]} Qe6 {[%emt 0:10:34]} 24. Nd5 {[%emt 0:01:02]} Rd7 {[%emt 0:00:
00]} 25. Bxf6 {[%emt 0:00:00]} Bxf6 {[%emt 0:00:00]} 26. Nc5 {[%emt 0:00:00]}
dxc5 {[%emt 0:05:17]} 27. Nxf6+ {[%emt 0:00:00]} Qxf6 {[%emt 0:00:00]} 28. Rxd7
{[%emt 0:00:00]} Nd4 {[%emt 0:00:00]} 29. Rd5 {[%emt 0:01:10]} Qc6 {[%emt 0:00:
18]} 30. Kh1 {[%emt 0:00:00]} Qa4 {[%emt 0:00:04]} 31. b3 {[%emt 0:00:00]} Qa3
{[%emt 0:00:00]} 32. Qd2 {[%emt 0:00:00]} a5 {[%emt 0:01:38]} 33. h4 {[%emt 0:
00:00]} b6 {[%emt 0:00:00]} 34. h5 {[%emt 0:00:00]} a4 {[%emt 0:00:00]} 35.
bxa4 {[%emt 0:00:00]} Qxa4 {[%emt 0:00:00]} 36. Rb1 {[%emt 0:00:00]} Qc6 {
[%emt 0:00:00]} 37. Qf4 {[%emt 0:00:00]} Ne2 {[%emt 0:00:00]} 38. Qd6 {[%emt 0:
00:00]} Qa4 {[%emt 0:00:00]} 39. h6 {[%emt 0:00:00]} Nd4 {[%emt 0:00:00]} 40.
Qf6 {[%emt 0:00:00]} Ne6 {[%emt 0:00:00]} 41. Rd6 {[%emt 0:00:00]} Kf8 {
[%emt 0:00:00]} 42. Rbxb6 {[%emt 0:00:00]} Qc2 {[%emt 0:00:00]} 43. Qh8+ {
[%emt 0:00:00]} Ke7 {[%emt 0:00:00]} 44. Rxe6+ {[%emt 0:00:00]} 1-0

[Event "28th North American Open"]
[Site "Las Vegas"]
[Date "2018.12.28"]
[Round "5"]
[White "Martin Del Campo C., Roberto"]
[Black "Calugar, Arthur"]
[Result "0-1"]
[ECO "B48"]
[WhiteElo "2313"]
[BlackElo "2208"]
[PlyCount "89"]
[EventDate "2018.12.??"]
[EventType "swiss"]
[EventRounds "9"]
[EventCountry "USA"]
[TimeControl "6600+10"]
[WhiteClock "0:03:55"]
[BlackClock "0:14:38"]

1. e4 {[%emt 0:19:40]} c5 2. Nf3 {[%emt 0:00:00]} e6 {[%emt 0:20:07]} 3. d4 {
[%emt 0:01:16]} cxd4 {[%emt 0:00:00]} 4. Nxd4 {[%emt 0:00:00]} Nc6 {[%emt 0:00:
00]} 5. Nc3 {[%emt 0:00:00]} Qc7 {[%emt 0:00:00]} 6. Be3 {[%emt 0:00:00]} a6 {
[%emt 0:00:00]} 7. Bd3 {[%emt 0:00:13]} Nf6 {[%emt 0:00:00]} 8. O-O {[%emt 0:
00:00]} Ne5 {[%emt 0:00:00]} 9. h3 {[%emt 0:00:00]} b5 {[%emt 0:03:52]} 10. f4
{[%emt 0:02:46]} Nc4 {[%emt 0:00:00]} 11. Bxc4 {[%emt 0:03:17]} Qxc4 {[%emt 0:
00:00]} 12. Qd3 {[%emt 0:02:40]} Bb7 {[%emt 0:03:57]} 13. a4 {[%emt 0:04:39]}
Qxd3 {[%emt 0:35:24]} 14. cxd3 {[%emt 0:00:14]} b4 {[%emt 0:00:09]} 15. Nce2 {
[%emt 0:03:10]} Bc5 {[%emt 0:04:28]} 16. Rfc1 {[%emt 0:08:27]} d6 {[%emt 0:01:
13]} 17. Kf2 {[%emt 0:01:12]} Kd7 {[%emt 0:06:59]} 18. Nb3 {[%emt 0:02:12]}
Bxe3+ {[%emt 0:00:02]} 19. Kxe3 {[%emt 0:00:00]} a5 {[%emt 0:00:06]} 20. Ned4 {
[%emt 0:03:39]} Rhg8 {[%emt 0:04:44]} 21. Nb5 {[%emt 0:14:36]} Ne8 {[%emt 0:00:
09]} 22. h4 {[%emt 0:10:35]} h6 {[%emt 0:03:11]} 23. g4 {[%emt 0:17:49]} g5 {
[%emt 0:03:09]} 24. fxg5 {[%emt 0:06:52]} hxg5 {[%emt 0:00:00]} 25. h5 {
[%emt 0:00:00]} f5 {[%emt 0:02:08]} 26. exf5 {[%emt 0:00:13]} exf5 {[%emt 0:00:
00]} 27. gxf5 {[%emt 0:00:00]} Rh8 {[%emt 0:02:31]} 28. Nd2 {[%emt 0:02:40]}
Rxh5 {[%emt 0:01:07]} 29. Ne4 {[%emt 0:00:00]} Rh3+ {[%emt 0:02:15]} 30. Kd4 {
[%emt 0:00:15]} Rh4 {[%emt 0:12:05]} 31. Rh1 {[%emt 0:03:32]} Bxe4 {[%emt 0:02:
49]} 32. dxe4 {[%emt 0:01:41]} Nf6 {[%emt 0:00:50]} 33. Rxh4 {[%emt 0:01:31]}
gxh4 {[%emt 0:00:00]} 34. Rh1 {[%emt 0:00:00]} Rh8 {[%emt 0:00:00]} 35. Ke3 {
[%emt 0:00:00]} h3 {[%emt 0:02:39]} 36. Kf4 {[%emt 0:00:00]} h2 {[%emt 0:00:04]
} 37. Nd4 {[%emt 0:00:00]} d5 {[%emt 0:00:00]} 38. e5 {[%emt 0:00:00]} Rh4+ {
[%emt 0:00:00]} 39. Kg5 {[%emt 0:00:00]} Rxd4 {[%emt 0:00:00]} 40. Kxf6 {
[%emt 0:00:00]} Rh4 {[%emt 0:00:00]} 41. e6+ {[%emt 0:00:38]} Ke8 {[%emt 0:00:
00]} 42. Ke5 {[%emt 0:01:29]} Rh5 {[%emt 0:00:00]} 43. Kd6 {[%emt 0:00:00]} d4
{[%emt 0:00:00]} 44. f6 {[%emt 0:00:00]} Rh6 {[%emt 0:00:00]} 45. Rc1 {[%emt 0:
00:00]} 0-1

[Event "28th North American Open"]
[Site "Las Vegas"]
[Date "2018.12.28"]
[Round "6.1"]
[White "Bai, Jinshi"]
[Black "Coleman, Teddy"]
[Result "1-0"]
[ECO "E06"]
[WhiteElo "2568"]
[BlackElo "2361"]
[PlyCount "41"]
[EventDate "2018.12.??"]
[EventType "swiss"]
[EventRounds "9"]
[EventCountry "USA"]
[TimeControl "6600+10"]
[WhiteClock "0:43:52"]
[BlackClock "0:55:16"]

1. d4 {[%emt 0:00:00]} d5 {[%emt 0:00:00]} 2. c4 {[%emt 0:00:00]} e6 {[%emt 0:
00:00]} 3. Nf3 {[%emt 0:00:00]} Nf6 {[%emt 0:00:00]} 4. g3 {[%emt 0:00:00]} Be7
{[%emt 0:00:00]} 5. Bg2 {[%emt 0:00:00]} O-O {[%emt 0:00:00]} 6. Nc3 {[%emt 0:
00:00]} c6 {[%emt 0:00:00]} 7. O-O {[%emt 0:00:00]} b6 {[%emt 0:00:00]} 8. Ne5
{[%emt 0:00:00]} Ba6 {[%emt 0:00:00]} 9. Qa4 {[%emt 0:21:24]} Qe8 {[%emt 0:01:
01]} 10. cxd5 {[%emt 0:08:05]} cxd5 {[%emt 0:03:22]} 11. Qxe8 {[%emt 0:00:14]}
Rxe8 {[%emt 0:00:10]} 12. Bf4 {[%emt 0:00:21]} Rc8 {[%emt 0:19:25]} 13. Rfc1 {
[%emt 0:03:26]} Bb7 {[%emt 0:10:11]} 14. e4 {[%emt 0:15:27]} dxe4 {[%emt 0:09:
11]} 15. Nxe4 {[%emt 0:02:59]} Rxc1+ {[%emt 0:00:15]} 16. Rxc1 {[%emt 0:00:10]}
Nxe4 {[%emt 0:01:06]} 17. Rc7 {[%emt 0:05:12]} Bd5 {[%emt 0:01:09]} 18. Rxe7 {
[%emt 0:01:11]} Nc6 {[%emt 0:00:10]} 19. Rd7 {[%emt 0:08:40]} Nf6 {[%emt 0:12:
04]} 20. Rxd5 {[%emt 0:02:19]} Ne4 21. Rd7 1-0

[Event "28th North American Open"]
[Site "Las Vegas"]
[Date "2018.12.28"]
[Round "6.2"]
[White "Song, Edward"]
[Black "Zierk, Steven"]
[Result "0-1"]
[ECO "C07"]
[WhiteElo "2355"]
[BlackElo "2510"]
[PlyCount "132"]
[EventDate "2018.12.??"]
[EventType "swiss"]
[EventRounds "9"]
[EventCountry "USA"]
[TimeControl "6600+10"]
[WhiteClock "0:00:37"]
[BlackClock "0:07:29"]

1. e4 {[%emt 0:03:30]} e6 {[%emt 0:00:00]} 2. d4 {[%emt 0:00:35]} d5 {[%emt 0:
00:00]} 3. Nd2 {[%emt 0:00:17]} c5 {[%emt 0:00:00]} 4. Ngf3 {[%emt 0:00:22]}
cxd4 {[%emt 0:00:00]} 5. exd5 {[%emt 0:00:10]} Qxd5 {[%emt 0:00:00]} 6. Bc4 {
[%emt 0:00:31]} Qd7 {[%emt 0:00:00]} 7. O-O {[%emt 0:00:21]} Nc6 {[%emt 0:00:
00]} 8. Nb3 {[%emt 0:00:10]} Nf6 {[%emt 0:00:00]} 9. Nbxd4 {[%emt 0:01:11]}
Nxd4 {[%emt 0:00:00]} 10. Qxd4 {[%emt 0:00:16]} Qxd4 {[%emt 0:00:00]} 11. Nxd4
{[%emt 0:00:10]} a6 {[%emt 0:00:00]} 12. Be2 {[%emt 0:00:58]} Bd6 {[%emt 0:01:
27]} 13. c4 {[%emt 0:09:24]} O-O {[%emt 0:08:22]} 14. Be3 {[%emt 0:06:28]} e5 {
[%emt 0:12:32]} 15. Nb3 {[%emt 0:01:15]} Bc7 {[%emt 0:03:26]} 16. h3 {[%emt 0:
02:40]} b6 {[%emt 0:02:02]} 17. Rfd1 {[%emt 0:07:46]} Be6 {[%emt 0:10:37]} 18.
Rac1 {[%emt 0:06:23]} a5 {[%emt 0:08:02]} 19. Na1 {[%emt 0:06:06]} Rfd8 {
[%emt 0:05:11]} 20. Nc2 {[%emt 0:00:50]} Rxd1+ {[%emt 0:02:28]} 21. Rxd1 {
[%emt 0:00:10]} Rd8 {[%emt 0:00:39]} 22. Rxd8+ {[%emt 0:02:52]} Bxd8 {[%emt 0:
00:10]} 23. f4 {[%emt 0:00:28]} exf4 {[%emt 0:02:24]} 24. Bxf4 {[%emt 0:00:10]}
Ne4 {[%emt 0:03:53]} 25. Nd4 {[%emt 0:05:25]} Bd7 {[%emt 0:02:56]} 26. Bd3 {
[%emt 0:03:43]} Nc5 {[%emt 0:00:48]} 27. Bf1 {[%emt 0:07:35]} Na4 {[%emt 0:03:
44]} 28. b3 {[%emt 0:00:23]} Nc3 {[%emt 0:02:55]} 29. a3 {[%emt 0:01:17]} Be7 {
[%emt 0:00:58]} 30. Nb5 {[%emt 0:15:51]} Bc5+ {[%emt 0:02:15]} 31. Kh1 {
[%emt 0:01:09]} Nxb5 {[%emt 0:15:27]} 32. cxb5 {[%emt 0:01:26]} Be6 {[%emt 0:
01:40]} 33. b4 {[%emt 0:02:06]} axb4 {[%emt 0:00:10]} 34. axb4 {[%emt 0:00:10]}
Bxb4 {[%emt 0:00:41]} 35. Be3 {[%emt 0:00:10]} Ba5 {[%emt 0:00:49]} 36. g4 {
[%emt 0:01:33]} Bd5+ {[%emt 0:01:31]} 37. Kh2 {[%emt 0:02:43]} f6 {[%emt 0:00:
29]} 38. Kg3 {[%emt 0:03:08]} Kf7 {[%emt 0:00:49]} 39. h4 {[%emt 0:01:01]} Be1+
{[%emt 0:09:27]} 40. Kh3 {[%emt 0:00:15]} Be6 {[%emt 0:01:32]} 41. Bxb6 {
[%emt 0:05:49]} h5 {[%emt 0:00:10]} 42. Be2 {[%emt 0:00:10]} Bd7 {[%emt 0:00:
28]} 43. Bd4 {[%emt 0:05:52]} hxg4+ {[%emt 0:02:48]} 44. Bxg4 {[%emt 0:00:10]}
Bxb5 {[%emt 0:00:51]} 45. h5 {[%emt 0:00:51]} Bf1+ {[%emt 0:00:42]} 46. Kh2 {
[%emt 0:00:10]} Bd2 {[%emt 0:01:32]} 47. Kg3 {[%emt 0:01:20]} Bd3 {[%emt 0:00:
24]} 48. Kf3 {[%emt 0:00:00]} Bh6 {[%emt 0:00:00]} 49. Kg3 {[%emt 0:00:00]} Kg8
{[%emt 0:00:00]} 50. Bd1 {[%emt 0:00:00]} Kh7 {[%emt 0:00:00]} 51. Bc5 {
[%emt 0:00:00]} Bd2 {[%emt 0:00:00]} 52. Bf8 {[%emt 0:00:00]} Kh6 {[%emt 0:00:
00]} 53. Kh4 {[%emt 0:00:00]} Bc4 {[%emt 0:00:00]} 54. Kg3 {[%emt 0:00:00]} Be6
{[%emt 0:00:00]} 55. Be2 {[%emt 0:00:00]} Bf7 {[%emt 0:00:00]} 56. Kh3 {
[%emt 0:00:00]} f5 {[%emt 0:00:00]} 57. Bd1 {[%emt 0:00:00]} Bc3 {[%emt 0:00:
00]} 58. Bc2 {[%emt 0:00:09]} Be6 {[%emt 0:00:00]} 59. Bd1 {[%emt 0:00:10]} Bf6
{[%emt 0:00:00]} 60. Bb4 {[%emt 0:01:00]} Kg5 {[%emt 0:00:00]} 61. Bd2+ {
[%emt 0:00:38]} f4+ {[%emt 0:00:00]} 62. Kg2 {[%emt 0:00:10]} Be5 {[%emt 0:00:
00]} 63. Kf3 {[%emt 0:02:20]} Bd5+ {[%emt 0:00:00]} 64. Kf2 {[%emt 0:00:10]}
Bf7 {[%emt 0:00:00]} 65. Kf3 {[%emt 0:00:16]} Bxh5+ {[%emt 0:00:00]} 66. Ke4 {
[%emt 0:00:10]} Bc7 {[%emt 0:00:00]} 0-1

[Event "28th North American Open"]
[Site "Las Vegas"]
[Date "2018.12.28"]
[Round "6.3"]
[White "Pakleza, Zbigniew"]
[Black "Zhu, Jack"]
[Result "1/2-1/2"]
[ECO "A48"]
[WhiteElo "2506"]
[BlackElo "2364"]
[PlyCount "70"]
[EventDate "2018.12.??"]
[EventType "swiss"]
[EventRounds "9"]
[EventCountry "USA"]
[TimeControl "6600+10"]
[WhiteClock "0:16:37"]
[BlackClock "0:39:59"]

1. d4 {[%emt 0:00:00]} Nf6 {[%emt 0:00:00]} 2. Nf3 {[%emt 0:00:00]} g6 {
[%emt 0:00:00]} 3. e3 {[%emt 0:00:00]} Bg7 {[%emt 0:00:00]} 4. Be2 {[%emt 0:00:
00]} O-O {[%emt 0:00:00]} 5. O-O {[%emt 0:00:00]} d6 {[%emt 0:00:00]} 6. c4 {
[%emt 0:00:00]} c6 {[%emt 0:00:00]} 7. Nc3 {[%emt 0:00:00]} a5 {[%emt 0:01:01]}
8. b3 {[%emt 0:00:00]} Qb6 {[%emt 0:00:51]} 9. Bb2 {[%emt 0:00:00]} Nbd7 {
[%emt 0:02:28]} 10. Qc2 {[%emt 0:01:17]} Re8 {[%emt 0:00:16]} 11. Rfd1 {
[%emt 0:04:54]} e5 {[%emt 0:13:50]} 12. dxe5 {[%emt 0:05:43]} dxe5 {[%emt 0:00:
21]} 13. Na4 {[%emt 0:01:29]} Qc7 {[%emt 0:00:22]} 14. Ba3 {[%emt 0:00:55]} Bf8
{[%emt 0:00:15]} 15. Bxf8 {[%emt 0:10:08]} Nxf8 {[%emt 0:00:10]} 16. c5 {
[%emt 0:01:08]} Bf5 {[%emt 0:00:34]} 17. Qb2 {[%emt 0:00:35]} Bg4 {[%emt 0:09:
20]} 18. h3 {[%emt 0:25:05]} Bxf3 19. Bxf3 {[%emt 0:00:10]} Rad8 {[%emt 0:07:
06]} 20. a3 {[%emt 0:04:02]} N8d7 {[%emt 0:08:11]} 21. b4 {[%emt 0:00:32]} axb4
{[%emt 0:02:48]} 22. axb4 {[%emt 0:00:10]} e4 {[%emt 0:00:10]} 23. Be2 {
[%emt 0:00:10]} Nd5 {[%emt 0:00:14]} 24. Rd4 {[%emt 0:06:55]} Qe5 {[%emt 0:01:
20]} 25. Bc4 {[%emt 0:07:52]} Qg5 {[%emt 0:04:05]} 26. Nc3 {[%emt 0:12:03]}
Nxc3 {[%emt 0:01:13]} 27. Qxc3 {[%emt 0:00:10]} Ne5 {[%emt 0:00:16]} 28. Be2 {
[%emt 0:05:34]} Nf3+ {[%emt 0:01:21]} 29. Bxf3 {[%emt 0:00:10]} exf3 {[%emt 0:
00:10]} 30. g3 {[%emt 0:01:09]} Rxd4 {[%emt 0:13:10]} 31. Qxd4 {[%emt 0:00:27]}
Qf5 {[%emt 0:00:10]} 32. Kh2 {[%emt 0:07:47]} Qc2 {[%emt 0:04:49]} 33. Kg1 {
[%emt 0:00:10]} Qf5 {[%emt 0:00:33]} 34. Kh2 {[%emt 0:00:28]} Qc2 {[%emt 0:00:
47]} 35. Kg1 {[%emt 0:00:10]} Qf5 {[%emt 0:00:10]} 1/2-1/2

[Event "28th North American Open"]
[Site "Las Vegas"]
[Date "2018.12.28"]
[Round "6.4"]
[White "Daggupati, Balaji"]
[Black "Hong, Andrew"]
[Result "1/2-1/2"]
[ECO "B50"]
[WhiteElo "2256"]
[BlackElo "2390"]
[PlyCount "54"]
[EventDate "2018.12.??"]
[EventType "swiss"]
[EventRounds "9"]
[EventCountry "USA"]
[TimeControl "6600+10"]
[WhiteClock "1:05:06"]
[BlackClock "0:30:00"]

1. e4 {[%emt 0:00:00]} c5 {[%emt 0:00:00]} 2. Nf3 {[%emt 0:00:00]} d6 {[%emt 0:
00:00]} 3. Bc4 {[%emt 0:00:00]} Nc6 {[%emt 0:00:00]} 4. O-O {[%emt 0:00:00]}
Nf6 {[%emt 0:00:00]} 5. d3 {[%emt 0:00:00]} e6 {[%emt 0:02:46]} 6. Re1 {
[%emt 0:00:00]} Be7 {[%emt 0:00:20]} 7. Bb3 {[%emt 0:00:00]} Na5 {[%emt 0:07:
45]} 8. Ba4+ {[%emt 0:00:00]} Bd7 {[%emt 0:00:40]} 9. c3 {[%emt 0:00:00]} Bxa4
{[%emt 0:04:11]} 10. Qxa4+ {[%emt 0:00:00]} Nc6 {[%emt 0:00:34]} 11. e5 {
[%emt 0:04:11]} dxe5 {[%emt 0:04:27]} 12. Nxe5 {[%emt 0:00:17]} O-O {[%emt 0:
07:58]} 13. Nxc6 {[%emt 0:01:20]} bxc6 {[%emt 0:00:10]} 14. Rd1 {[%emt 0:02:37]
} Qd5 {[%emt 0:04:07]} 15. Be3 {[%emt 0:06:32]} Rfb8 {[%emt 0:10:40]} 16. Rd2 {
[%emt 0:02:49]} Qh5 {[%emt 0:12:07]} 17. Qxc6 {[%emt 0:07:46]} Ng4 {[%emt 0:03:
20]} 18. Bf4 {[%emt 0:04:12]} e5 {[%emt 0:09:22]} 19. Bg3 {[%emt 0:13:33]} Bg5
{[%emt 0:03:39]} 20. Qxc5 {[%emt 0:01:29]} Bxd2 {[%emt 0:05:30]} 21. Nxd2 {
[%emt 0:00:10]} Rxb2 {[%emt 0:00:18]} 22. Nc4 {[%emt 0:01:40]} Rc2 {[%emt 0:02:
24]} 23. h3 {[%emt 0:00:39]} Qh6 {[%emt 0:03:02]} 24. hxg4 {[%emt 0:01:39]}
Rc1+ {[%emt 0:00:45]} 25. Rxc1 {[%emt 0:00:10]} Qxc1+ {[%emt 0:00:10]} 26. Kh2
{[%emt 0:00:10]} Qh6+ {[%emt 0:00:15]} 27. Kg1 {[%emt 0:00:10]} Qc1+ {[%emt 0:
00:10]} 1/2-1/2